fUST/lending_fUST_20250528
["ID","MTS","AMOUNT","RATE_DAILY","PERIOD"]
[362664364,1748389844436,-500.0,0.00020042,2]
[362664365,1748389844446,-500.0,0.00020042,2]
[362664366,1748389844456,-430.0,0.00020043,2]
[362664367,1748389844466,-430.0,0.00020043,2]
[362664368,1748389844476,-430.0,0.00020043,2]
[362664370,1748389844486,-430.0,0.00020043,2]
[362664372,1748389844495,-430.0,0.00020043,2]
[362664374,1748389844505,-430.0,0.00020043,2]
[362664376,1748389844520,-430.0,0.00020043,2]
[362664378,1748389844531,-430.0,0.00020043,2]
[362664380,1748389844545,-500.0,0.00020044,2]
[362664382,1748389844554,-153.64719825,0.0002016,2]
[362664384,1748389844564,-320.633566,0.00020187,2]
[362664387,1748389844574,-430.0,0.00020273,2]
[362664388,1748389844583,-500.0,0.00020273,2]
[362664391,1748389844596,-430.0,0.00020273,2]
[362664393,1748389844605,-430.0,0.00020273,2]
[362664395,1748389844615,-560.0,0.00020273,2]
[362664397,1748389844625,-430.0,0.00020273,2]
[362664399,1748389844634,-430.0,0.00020273,2]
[362664401,1748389844644,-430.0,0.00020273,2]
[362664403,1748389844654,-430.0,0.00020273,2]
[362664405,1748389844664,-430.0,0.00020273,2]
[362664407,1748389844673,-430.0,0.00020273,2]
[362664409,1748389844683,-430.0,0.00020273,2]
[362664411,1748389844692,-430.0,0.00020273,2]
[362664413,1748389844702,-430.0,0.00020273,2]
[362664415,1748389844711,-417.84,0.00020273,2]
[362664417,1748389844721,-430.0,0.00020273,2]
[362664419,1748389844730,-430.0,0.00020273,2]
[362664421,1748389844739,-156.74,0.00020273,2]
[362664423,1748389844749,-430.0,0.00020273,2]
[362664425,1748389844758,-430.0,0.00020273,2]
[362664427,1748389844769,-185.96,0.00020273,2]
[362664429,1748389844778,-328.32649679,0.00020273,2]
[362664431,1748389844788,-430.0,0.00020273,2]
[362664433,1748389844798,-430.0,0.00020273,2]
[362664435,1748389844808,-211.6,0.00020273,2]
[362664437,1748389844817,-430.0,0.00020273,2]
[362664439,1748389844827,-932.7,0.00020273,2]
[362664441,1748389844837,-430.0,0.00020273,2]
[362664443,1748389844847,-430.0,0.00020273,2]
[362664445,1748389844857,-430.0,0.00020273,2]
[362664447,1748389844866,-884.71,0.00020273,2]
[362664449,1748389844875,-430.0,0.00020273,2]
[362664451,1748389844885,-430.0,0.00020273,2]
[362664453,1748389844894,-430.0,0.00020273,2]
[362664455,1748389844903,-430.0,0.00020273,2]
[362664457,1748389844912,-886.17,0.00020273,2]
[362664459,1748389844922,-430.0,0.00020273,2]
[362664461,1748389844932,-430.0,0.00020273,2]
[362664463,1748389844941,-430.0,0.00020273,2]
[362664465,1748389844951,-430.0,0.00020273,2]
[362664467,1748389844960,-512.57,0.00020273,2]
[362664469,1748389844970,-430.0,0.00020273,2]
[362664471,1748389844979,-430.0,0.00020273,2]
[362664473,1748389844988,-376.73957545,0.00020273,2]
[362664475,1748389844997,-430.0,0.00020273,2]
[362664477,1748389845007,-430.0,0.00020273,2]
[362664479,1748389845016,-430.0,0.00020273,2]
[362664481,1748389845026,-430.0,0.00020273,2]
[362664483,1748389845035,-430.0,0.00020273,2]
[362664485,1748389845045,-430.0,0.00020273,2]
[362664487,1748389845054,-430.0,0.00020273,2]
[362664489,1748389845064,-430.0,0.00020273,2]
[362664491,1748389845073,-430.0,0.00020273,2]
[362664493,1748389845083,-430.0,0.00020273,2]
[362664495,1748389845092,-430.0,0.00020273,2]
[362664497,1748389845102,-430.0,0.00020273,2]
[362664499,1748389845111,-430.0,0.00020273,2]
[362664501,1748389845121,-430.0,0.00020273,2]
[362664503,1748389845130,-310.2,0.00020273,2]
[362664505,1748389845139,-430.0,0.00020273,2]
[362664507,1748389845148,-430.0,0.00020273,2]
[362664509,1748389845157,-430.0,0.00020273,2]
[362664511,1748389845167,-430.0,0.00020273,2]
[362664513,1748389845176,-430.0,0.00020273,2]
[362664515,1748389845185,-430.0,0.00020273,2]
[362664517,1748389845195,-430.0,0.00020273,2]
[362664519,1748389845204,-471.69,0.00020273,2]
[362664521,1748389845213,-430.0,0.00020273,2]
[362664523,1748389845222,-430.0,0.00020273,2]
[362664525,1748389845231,-430.0,0.00020273,2]
[362664527,1748389845241,-430.0,0.00020273,2]
[362664529,1748389845250,-237.8,0.00020273,2]
[362664532,1748389845260,-1000.0,0.00020279,2]
[362664533,1748389845269,-432.33265084,0.00020317,2]
[362664536,1748389845286,-430.59049704,0.00020317,2]
[362664539,1748389845300,-430.0,0.00020317,2]
[362664541,1748389845310,-431.95477847,0.00020317,2]
[362664543,1748389845319,-430.0,0.00020317,2]
[362664545,1748389845329,-518.51315092,0.00020317,2]
[362664547,1748389845339,-431.84466198,0.00020317,2]
[362664549,1748389845349,-430.0,0.00020317,2]
[362664551,1748389845359,-430.0,0.00020317,2]
[362664553,1748389845368,-430.0,0.00020317,2]
[362664555,1748389845378,-355.87401664,0.00020317,2]
[362664557,1748389845388,-430.0,0.00020317,2]
[362664560,1748389845399,-430.0,0.00020317,2]
[362664562,1748389845408,-430.0,0.00020317,2]
[362664564,1748389845418,-430.0,0.00020317,2]
[362664566,1748389845428,-430.0,0.00020317,2]
[362664568,1748389845437,-430.0,0.00020317,2]
[362664570,1748389845448,-430.0,0.00020317,2]
[362664572,1748389845458,-400.0,0.00020317,2]
[362664574,1748389845469,-400.0,0.00020317,2]
[362664576,1748389845478,-503.23081399,0.00020317,2]
[362664578,1748389845488,-430.0,0.00020317,2]
[362664580,1748389845498,-430.0,0.00020317,2]
[362664582,1748389845508,-400.0,0.00020317,2]
[362664584,1748389845521,-400.0,0.00020317,2]
[362664586,1748389845531,-400.0,0.00020317,2]
[362664588,1748389845541,-430.0,0.00020317,2]
[362664590,1748389845551,-430.0,0.00020317,2]
[362664592,1748389845562,-400.0,0.00020317,2]
[362664594,1748389845572,-400.0,0.00020317,2]
[362664596,1748389845582,-430.0,0.00020317,2]
[362664598,1748389845593,-400.0,0.00020317,2]
[362664600,1748389845603,-430.0,0.00020317,2]
[362664602,1748389845614,-400.0,0.00020317,2]
[362664604,1748389845631,-400.0,0.00020317,2]
[362664606,1748389845641,-400.0,0.00020317,2]
[362664621,1748389845762,-400.0,0.00020317,2]
[362664623,1748389845773,-500.0,0.00020317,2]
[362664625,1748389845783,-430.0,0.00020317,2]
[362664627,1748389845792,-430.95520742,0.00020317,2]
[362664629,1748389845802,-430.0,0.00020317,2]
[362664631,1748389845811,-430.0,0.00020317,2]
[362664633,1748389845821,-370.0,0.00020317,2]
[362664635,1748389845830,-430.0,0.00020317,2]
[362664637,1748389845839,-430.0,0.00020317,2]
[362664639,1748389845849,-430.0,0.00020317,2]
[362664641,1748389845858,-430.0,0.00020317,2]
[362664643,1748389845868,-430.0,0.00020317,2]
[362664646,1748389845878,-430.0,0.00020317,2]
[362664648,1748389845893,-430.0,0.00020317,2]
[362664650,1748389845903,-430.0,0.00020317,2]
[362664652,1748389845913,-430.0,0.00020317,2]
[362664654,1748389845924,-430.0,0.00020317,2]
[362664656,1748389845934,-430.0,0.00020317,2]
[362664658,1748389845944,-430.0,0.00020317,2]
[362664660,1748389845954,-582.73,0.00020317,2]
[362664662,1748389845965,-430.0,0.00020317,2]
[362664664,1748389845975,-430.0,0.00020317,2]
[362664666,1748389845984,-160.0,0.00020438,2]
[362664668,1748389845994,-423.16111059,0.00020438,2]
[362664671,1748389846004,-160.0,0.00020438,2]
[362664673,1748389846013,-842.5625,0.00020438,2]
[362664674,1748389846022,-229.18805157,0.00020438,2]
[362664677,1748389846032,-160.0,0.00020438,2]
[362664679,1748389846043,-12656.54583329,0.00020439,2]
[362664681,1748389846053,-160.0,0.00020439,2]
[362664683,1748389846064,-212.62946336,0.00020439,2]
[362664685,1748389846073,-4028.84883081,0.00020489,2]
[362664687,1748389846083,-430.0,0.00020547,2]
[362664689,1748389846092,-500.0,0.00020547,2]
[362664691,1748389846102,-430.0,0.00020547,2]
[362664693,1748389846111,-377.4,0.00020547,2]
[362664695,1748389846121,-430.0,0.00020547,2]
[362664697,1748389846131,-430.0,0.00020547,2]
[362664699,1748389846140,-430.0,0.00020547,2]
[362664701,1748389846150,-260.27332379,0.00020547,2]
[362664703,1748389846159,-216.35,0.00020547,2]
[362664705,1748389846169,-430.0,0.00020547,2]
[362664707,1748389846179,-355.22,0.00020547,2]
[362664709,1748389846189,-430.0,0.00020547,2]
[362664711,1748389846199,-430.0,0.00020547,2]
[362664713,1748389846208,-430.0,0.00020547,2]
[362664715,1748389846218,-430.0,0.00020547,2]
[362664717,1748389846227,-430.0,0.00020547,2]
[362664719,1748389846237,-430.0,0.00020547,2]
[362664721,1748389846247,-290.21,0.00020547,2]
[362664723,1748389846256,-430.0,0.00020547,2]
[362664725,1748389846266,-291.92,0.00020547,2]
[362664729,1748389846276,-932.7,0.00020547,2]
[362664732,1748389846286,-430.0,0.00020547,2]
[362664735,1748389846295,-430.0,0.00020547,2]
[362664738,1748389846305,-430.0,0.00020547,2]
[362664740,1748389846315,-884.71,0.00020547,2]
[362664742,1748389846324,-430.0,0.00020547,2]
[362664744,1748389846334,-430.0,0.00020547,2]
[362664746,1748389846343,-430.0,0.00020547,2]
[362664748,1748389846352,-430.0,0.00020547,2]
[362664750,1748389846361,-886.17,0.00020547,2]
[362664752,1748389846371,-430.0,0.00020547,2]
[362664754,1748389846381,-430.0,0.00020547,2]
[362664757,1748389846390,-430.0,0.00020547,2]
[362664761,1748389846399,-430.0,0.00020547,2]
[362664765,1748389846408,-512.57,0.00020547,2]
[362664768,1748389846418,-430.0,0.00020547,2]
[362664771,1748389846427,-430.0,0.00020547,2]
[362664774,1748389846436,-430.0,0.00020547,2]
[362664777,1748389846447,-430.0,0.00020547,2]
[362664779,1748389846456,-451.03,0.00020547,2]
[362664781,1748389846466,-430.0,0.00020547,2]
[362664783,1748389846475,-430.0,0.00020547,2]
[362664785,1748389846485,-430.0,0.00020547,2]
[362664787,1748389846494,-430.0,0.00020547,2]
[362664789,1748389846505,-430.0,0.00020547,2]
[362664791,1748389846520,-430.0,0.00020547,2]
[362664793,1748389846530,-430.0,0.00020547,2]
[362664795,1748389846540,-430.0,0.00020547,2]
[362664797,1748389846551,-430.0,0.00020547,2]
[362664799,1748389846560,-430.0,0.00020547,2]
[362664801,1748389846570,-430.0,0.00020547,2]
[362664803,1748389846581,-430.0,0.00020547,2]
[362664805,1748389846592,-430.0,0.00020547,2]
[362664807,1748389846602,-430.0,0.00020547,2]
[362664809,1748389846612,-430.0,0.00020547,2]
[362664811,1748389846621,-430.0,0.00020547,2]
[362664813,1748389846631,-430.0,0.00020547,2]
[362664815,1748389846641,-430.0,0.00020547,2]
[362664817,1748389846650,-430.0,0.00020547,2]
[362664819,1748389846660,-430.0,0.00020547,2]
[362664821,1748389846671,-430.0,0.00020547,2]
[362664824,1748389846680,-330.16,0.00020547,2]
[362664825,1748389846690,-430.0,0.00020591,2]
[362664827,1748389846699,-430.0,0.00020591,2]
[362664829,1748389846709,-430.0,0.00020591,2]
[362664831,1748389846719,-430.0,0.00020591,2]
[362664833,1748389846729,-430.0,0.00020591,2]
[362664835,1748389846738,-430.0,0.00020591,2]
[362664838,1748389846748,-430.0,0.00020591,2]
[362664840,1748389846758,-430.0,0.00020591,2]
[362664842,1748389846768,-430.0,0.00020591,2]
[362664843,1748389846777,-430.0,0.00020591,2]
[362664845,1748389846787,-430.0,0.00020591,2]
[362664847,1748389846796,-430.0,0.00020591,2]
[362664849,1748389846806,-522.95891089,0.00020591,2]
[362664851,1748389846816,-430.0,0.00020591,2]
[362664853,1748389846825,-430.0,0.00020591,2]
[362664855,1748389846834,-430.0,0.00020591,2]
[362664857,1748389846843,-430.0,0.00020591,2]
[362664859,1748389846853,-370.0,0.00020591,2]
[362664861,1748389846862,-430.0,0.00020591,2]
[362664863,1748389846872,-449.95,0.00020591,2]
[362664865,1748389846882,-430.0,0.00020591,2]
[362664867,1748389846891,-430.0,0.00020591,2]
[362664869,1748389846901,-430.0,0.00020591,2]
[362664871,1748389846910,-271.69572332,0.00020591,2]
[362664873,1748389846919,-430.0,0.00020591,2]
[362664875,1748389846929,-430.0,0.00020591,2]
[362664877,1748389846939,-430.0,0.00020591,2]
[362664879,1748389846949,-430.0,0.00020591,2]
[362664881,1748389846958,-430.0,0.00020591,2]
[362664883,1748389846968,-430.0,0.00020591,2]
[362664885,1748389846977,-582.73,0.00020591,2]
[362664887,1748389846987,-430.0,0.00020591,2]
[362664889,1748389846996,-430.0,0.00020591,2]
[362664891,1748389847006,-304.31598241,0.000206,2]
[362664893,1748389847015,-500.0,0.00020747,2]
[362664895,1748389847025,-500.0,0.00020747,2]
[362664897,1748389847035,-234.03,0.00020821,2]
[362664899,1748389847044,-500.0,0.00020821,2]
[362664901,1748389847054,-430.0,0.00020821,2]
[362664903,1748389847065,-430.0,0.00020821,2]
[362664905,1748389847074,-430.0,0.00020821,2]
[362664907,1748389847083,-430.0,0.00020821,2]
[362664909,1748389847093,-389.11,0.00020821,2]
[362664911,1748389847102,-430.0,0.00020821,2]
[362664913,1748389847111,-430.0,0.00020821,2]
[362664915,1748389847121,-430.0,0.00020821,2]
[362664917,1748389847130,-437.74,0.00020821,2]
[362664919,1748389847140,-211.18,0.00020821,2]
[362664921,1748389847150,-430.0,0.00020821,2]
[362664923,1748389847160,-430.0,0.00020821,2]
[362664925,1748389847169,-932.7,0.00020821,2]
[362664927,1748389847179,-389.55,0.00020821,2]
[362664929,1748389847189,-430.0,0.00020821,2]
[362664931,1748389847198,-309.87,0.00020821,2]
[362664933,1748389847207,-884.71,0.00020821,2]
[362664935,1748389847217,-430.0,0.00020821,2]
[362664937,1748389847227,-430.0,0.00020821,2]
[362664939,1748389847237,-430.0,0.00020821,2]
[362664941,1748389847247,-430.0,0.00020821,2]
[362664943,1748389847257,-886.17,0.00020821,2]
[362664945,1748389847267,-430.0,0.00020821,2]
[362664947,1748389847277,-430.0,0.00020821,2]
[362664949,1748389847286,-441.9,0.00020821,2]
[362664951,1748389847296,-430.0,0.00020821,2]
[362664953,1748389847305,-512.57,0.00020821,2]
[362664955,1748389847315,-430.0,0.00020821,2]
[362664957,1748389847324,-430.0,0.00020821,2]
[362664959,1748389847334,-430.0,0.00020821,2]
[362664961,1748389847343,-483.99,0.00020821,2]
[362664963,1748389847353,-430.0,0.00020821,2]
[362664965,1748389847363,-430.0,0.00020821,2]
[362664967,1748389847373,-430.0,0.00020821,2]
[362664969,1748389847382,-238.76,0.00020821,2]
[362664971,1748389847391,-430.0,0.00020821,2]
[362664974,1748389847410,-430.0,0.00020821,2]
[362664976,1748389847421,-430.0,0.00020821,2]
[362664978,1748389847431,-430.0,0.00020821,2]
[362664980,1748389847440,-430.0,0.00020821,2]
[362664982,1748389847450,-536.07,0.00020821,2]
[362664995,1748389847570,-430.0,0.00020821,2]
[362664997,1748389847589,-442.25,0.00020821,2]
[362664999,1748389847599,-430.0,0.00020821,2]
[362665001,1748389847609,-430.0,0.00020821,2]
[362665004,1748389847619,-430.0,0.00020821,2]
[362665006,1748389847629,-430.0,0.00020821,2]
[362665007,1748389847639,-430.0,0.00020821,2]
[362665009,1748389847648,-430.0,0.00020821,2]
[362665011,1748389847658,-430.0,0.00020821,2]
[362665013,1748389847667,-430.0,0.00020821,2]
[362665015,1748389847678,-1500.0,0.00020827,2]
[362665017,1748389847687,-207.77321708,0.00020865,2]
[362665019,1748389847697,-430.0,0.00020865,2]
[362665021,1748389847706,-430.0,0.00020865,2]
[362665023,1748389847715,-397.88877373,0.00020865,2]
[362665025,1748389847725,-430.0,0.00020865,2]
[362665027,1748389847734,-430.0,0.00020865,2]
[362665029,1748389847744,-430.0,0.00020865,2]
[362665031,1748389847753,-559.38,0.00020865,2]
[362665033,1748389847763,-430.0,0.00020865,2]
[362665035,1748389847772,-430.0,0.00020865,2]
[362665037,1748389847782,-430.0,0.00020865,2]
[362665039,1748389847792,-430.0,0.00020865,2]
[362665041,1748389847802,-430.0,0.00020865,2]
[362665043,1748389847811,-430.0,0.00020865,2]
[362665045,1748389847821,-430.0,0.00020865,2]
[362665047,1748389847830,-430.0,0.00020865,2]
[362665049,1748389847840,-582.73,0.00020865,2]
[362665051,1748389847850,-430.0,0.00020865,2]
[362665053,1748389847860,-430.0,0.00020865,2]
[362665055,1748389847869,-221.506,0.00020957,2]
[362665057,1748389847879,-430.0,0.00021095,2]
[362665059,1748389847889,-430.0,0.00021095,2]
[362665061,1748389847898,-430.0,0.00021095,2]
[362665063,1748389847907,-430.0,0.00021095,2]
[362665065,1748389847917,-430.0,0.00021095,2]
[362665067,1748389847927,-430.0,0.00021095,2]
[362665069,1748389847937,-430.0,0.00021095,2]
[362665071,1748389847947,-430.0,0.00021095,2]
[362665073,1748389847958,-430.0,0.00021095,2]
[362665075,1748389847967,-932.7,0.00021095,2]
[362665077,1748389847976,-430.0,0.00021095,2]
[362665079,1748389847986,-884.71,0.00021095,2]
[362665080,1748389847995,-430.0,0.00021095,2]
[362665082,1748389848005,-430.0,0.00021095,2]
[362665084,1748389848015,-430.0,0.00021095,2]
[362665086,1748389848025,-430.0,0.00021095,2]
[362665088,1748389848034,-886.17,0.00021095,2]
[362665090,1748389848044,-270.0,0.00021095,2]
[362665092,1748389848053,-430.0,0.00021095,2]
[362665094,1748389848063,-430.0,0.00021095,2]
[362665096,1748389848073,-512.57,0.00021095,2]
[362665098,1748389848082,-502.13,0.00021095,2]
[362665100,1748389848093,-430.0,0.00021095,2]
[362665102,1748389848102,-430.0,0.00021095,2]
[362665104,1748389848112,-430.0,0.00021095,2]
[362665106,1748389848121,-416.03,0.00021095,2]
[362665108,1748389848130,-430.0,0.00021095,2]
[362665110,1748389848139,-430.0,0.00021095,2]
[362665112,1748389848149,-471.93,0.00021095,2]
[362665114,1748389848158,-430.0,0.00021095,2]
[362665116,1748389848168,-430.0,0.00021095,2]
[362665118,1748389848178,-430.0,0.00021095,2]
[362665120,1748389848187,-430.0,0.00021095,2]
[362665122,1748389848197,-430.0,0.00021095,2]
[362665124,1748389848206,-205.73,0.00021095,2]
[362665126,1748389848215,-430.0,0.00021095,2]
[362665127,1748389848225,-430.0,0.00021095,2]
[362665129,1748389848234,-371.42,0.00021095,2]
[362665131,1748389848244,-430.0,0.00021095,2]
[362665133,1748389848253,-521.3,0.00021095,2]
[362665135,1748389848263,-430.0,0.00021095,2]
[362665137,1748389848273,-430.0,0.00021139,2]
[362665139,1748389848283,-303.52,0.00021139,2]
[362665141,1748389848292,-430.0,0.00021139,2]
[362665143,1748389848301,-582.73,0.00021139,2]
[362665145,1748389848311,-430.0,0.00021139,2]
[362665147,1748389848320,-219.84,0.00021139,2]
[362665149,1748389848329,-500.0,0.00021164,2]
[362665151,1748389848339,-4028.84883081,0.00021195,2]
[362665153,1748389848349,-1000.0,0.00021295,2]
[362665155,1748389848358,-1000.0,0.00021295,2]
[362665157,1748389848368,-153.64719825,0.00021345,2]
[362665159,1748389848377,-430.0,0.00021369,2]
[362665161,1748389848386,-430.0,0.00021369,2]
[362665163,1748389848396,-430.0,0.00021369,2]
[362665165,1748389848406,-430.0,0.00021369,2]
[362665167,1748389848415,-430.0,0.00021369,2]
[362665169,1748389848425,-430.0,0.00021369,2]
[362665171,1748389848434,-430.0,0.00021369,2]
[362665173,1748389848444,-430.0,0.00021369,2]
[362665175,1748389848453,-430.0,0.00021369,2]
[362665177,1748389848462,-932.7,0.00021369,2]
[362665178,1748389848471,-430.0,0.00021369,2]
[362665180,1748389848481,-884.71,0.00021369,2]
[362665182,1748389848491,-430.0,0.00021369,2]
[362665184,1748389848500,-430.0,0.00021369,2]
[362665186,1748389848511,-430.0,0.00021369,2]
[362665188,1748389848523,-430.0,0.00021369,2]
[362665190,1748389848533,-886.17,0.00021369,2]
[362665192,1748389848543,-430.0,0.00021369,2]
[362665194,1748389848554,-430.0,0.00021369,2]
[362665196,1748389848564,-512.57,0.00021369,2]
[362665198,1748389848574,-430.0,0.00021369,2]
[362665200,1748389848584,-422.4,0.00021369,2]
[362665202,1748389848596,-430.0,0.00021369,2]
[362665204,1748389848605,-430.0,0.00021369,2]
[362665206,1748389848615,-430.0,0.00021369,2]
[362665208,1748389848625,-430.0,0.00021369,2]
[362665210,1748389848635,-430.0,0.00021369,2]
[362665212,1748389848645,-430.0,0.00021369,2]
[362665214,1748389848654,-430.0,0.00021369,2]
[362665216,1748389848664,-569.36,0.00021369,2]
[362665218,1748389848673,-430.0,0.00021369,2]
[362665220,1748389848684,-430.0,0.00021369,2]
[362665222,1748389848693,-430.0,0.00021369,2]
[362665224,1748389848702,-430.0,0.00021369,2]
[362665226,1748389848711,-2000.0,0.00021375,2]
[362665228,1748389848722,-430.0,0.00021413,2]
[362665230,1748389848731,-582.73,0.00021413,2]
[362665232,1748389848741,-430.0,0.00021413,2]
[362665234,1748389848751,-587.0,0.0002163,2]
[362665236,1748389848760,-430.0,0.00021643,2]
[362665238,1748389848770,-430.0,0.00021643,2]
[362665240,1748389848780,-464.58698583,0.00021643,2]
[362665242,1748389848790,-430.0,0.00021643,2]
[362665244,1748389848799,-430.0,0.00021643,2]
[362665246,1748389848808,-430.0,0.00021643,2]
[362665247,1748389848817,-450.54,0.00021643,2]
[362665249,1748389848827,-430.0,0.00021643,2]
[362665251,1748389848837,-458.78,0.00021643,2]
[362665253,1748389848846,-932.7,0.00021643,2]
[362665255,1748389848856,-884.71,0.00021643,2]
[362665257,1748389848865,-430.0,0.00021643,2]
[362665259,1748389848875,-430.0,0.00021643,2]
[362665261,1748389848884,-430.0,0.00021643,2]
[362665263,1748389848894,-430.0,0.00021643,2]
[362665265,1748389848904,-886.17,0.00021643,2]
[362665267,1748389848913,-430.0,0.00021643,2]
[362665269,1748389848923,-467.54171466,0.00021643,2]
[362665271,1748389848932,-512.57,0.00021643,2]
[362665273,1748389848941,-549.83,0.00021643,2]
[362665275,1748389848951,-430.0,0.00021643,2]
[362665276,1748389848960,-257.35,0.00021643,2]
[362665277,1748389848969,-430.0,0.00021643,2]
[362665278,1748389848979,-430.0,0.00021643,2]
[362665279,1748389848988,-430.0,0.00021643,2]
[362665280,1748389848998,-430.0,0.00021643,2]
[362665281,1748389849007,-430.0,0.00021643,2]
[362665282,1748389849017,-430.0,0.00021643,2]
[362665283,1748389849027,-430.0,0.00021643,2]
[362665284,1748389849036,-430.0,0.00021643,2]
[362665285,1748389849045,-430.0,0.00021643,2]
[362665286,1748389849054,-430.0,0.00021687,2]
[362665287,1748389849064,-582.73,0.00021687,2]
[362665288,1748389849073,-430.0,0.00021687,2]
[362665289,1748389849082,-151.0,0.00021706,2]
[362665290,1748389849092,-151.0,0.00021706,2]
[362665291,1748389849101,-1500.0,0.00021843,2]
[362665292,1748389849111,-645.81764302,0.00021843,2]
[362665297,1748389849194,-405.0,0.0002187,2]
[362665299,1748389849203,-4028.84883081,0.000219,2]
[362665301,1748389849212,-430.0,0.00021917,2]
[362665303,1748389849222,-430.0,0.00021917,2]
[362665305,1748389849231,-430.0,0.00021917,2]
[362665307,1748389849241,-430.0,0.00021917,2]
[362665309,1748389849251,-430.0,0.00021917,2]
[362665311,1748389849261,-430.0,0.00021917,2]
[362665313,1748389849270,-932.7,0.00021917,2]
[362665315,1748389849279,-884.71,0.00021917,2]
[362665317,1748389849289,-430.0,0.00021917,2]
[362665319,1748389849299,-430.0,0.00021917,2]
[362665321,1748389849308,-430.0,0.00021917,2]
[362665323,1748389849317,-430.0,0.00021917,2]
[362665325,1748389849327,-886.17,0.00021917,2]
[362665327,1748389849336,-430.0,0.00021917,2]
[362665329,1748389849345,-512.57,0.00021917,2]
[362665331,1748389849354,-200.0,0.00021917,2]
[362665333,1748389849364,-478.34,0.00021917,2]
[362665335,1748389849373,-430.0,0.00021917,2]
[362665337,1748389849382,-430.0,0.00021917,2]
[362665339,1748389849391,-430.0,0.00021917,2]
[362665341,1748389849401,-430.0,0.00021917,2]
[362665343,1748389849411,-430.0,0.00021917,2]
[362665345,1748389849421,-430.0,0.00021917,2]
[362665347,1748389849430,-430.0,0.00021917,2]
[362665349,1748389849439,-430.0,0.00021917,2]
[362665351,1748389849449,-430.0,0.00021917,2]
[362665353,1748389849459,-430.0,0.00021961,2]
[362665354,1748389849468,-582.73,0.00021961,2]
[362665356,1748389849477,-430.0,0.00021961,2]
[362665359,1748389849487,-207.4,0.00021992,2]
[362665360,1748389849497,-152.01447341,0.00021992,2]
[362665362,1748389849507,-153.53485987,0.00021992,2]
[362665365,1748389849521,-119650.94,0.00022,7]
[362665366,1748389849531,-170.0,0.00022,2]
[362665368,1748389849542,-10911.23512469,0.00022,2]
[362665388,1748389849716,-232.30224052,0.00018175,2]
[362665390,1748389849726,-500.0,0.00018175,2]
[362665392,1748389849736,-167.48966092,0.00018175,2]
[362665394,1748389849746,-500.0,0.00018175,2]
[362665396,1748389849755,-451.00041443,0.00018175,2]
[362665398,1748389849766,-2509.2177143,0.00022,2]
[362665400,1748389849778,-2116.14064329,0.00022,2]
[362665402,1748389849790,-23379.41651772,0.00022,2]